bitfinex/quotes_SOLUSD_20250123
["timestamp","ask_amount","ask_price","bid_price","bid_amount"]
[1737607431642,0.063,245.72,245.71,19.16563739]
[1737607431967,0.063,245.72,245.71,42.94252139]
[1737607432471,0.063,245.72,245.71,47.01232139]
[1737607433362,0.063,245.72,245.71,359.01232139]
[1737607433867,0.063,245.73,245.72,31.276884]
[1737607434264,0.0001,245.73,245.72,31.276884]
[1737607434557,0.063,245.88,245.77,20.0]
[1737607434767,0.063,245.88,245.79,19.16563739]
[1737607434943,0.063,245.88,245.79,42.94252139]
[1737607435342,0.063,245.88,245.79,108.68393739]
[1737607435566,0.063,245.88,245.87,42.94252139]
[1737607436675,0.063,245.88,245.87,47.00962139]
[1737607437038,0.063,245.88,245.87,359.00962139]
[1737607437770,0.063,245.88,245.87,47.00962139]
[1737607438861,0.063,245.88,245.87,66.17525878]
[1737607439557,0.063,245.88,245.87,47.00962139]
[1737607439962,0.063,245.88,245.87,66.17525878]
[1737607440544,0.063,245.88,245.87,19.16563739]
[1737607441642,0.063,245.88,245.86,23.776884]
[1737607442868,0.063,245.88,245.85,39.16563739]
[1737607443375,0.063,245.88,245.83,19.16563739]
[1737607443575,0.063,245.88,245.79,19.16563739]
[1737607443749,19.16563739,245.87,245.79,19.16563739]
[1737607443952,19.16563739,245.83,245.75,19.16563739]
[1737607444151,19.16563739,245.83,245.73,25.78393739]
[1737607444356,19.16563739,245.83,245.77,23.776884]
[1737607444867,19.16563739,245.81,245.73,19.16563739]
[1737607445247,19.16563739,245.81,245.74,23.776884]
[1737607445849,19.16563739,245.81,245.74,335.776884]
[1737607447873,19.16563739,245.75,245.7,9.23121255]
[1737607448649,19.16563739,245.75,245.71,23.776884]
[1737607450274,19.16563739,245.75,245.7,9.23121255]
[1737607450482,19.16563739,245.73,245.7,9.23121255]
[1737607450677,19.16563739,245.71,245.7,9.23121255]
[1737607450853,19.16563739,245.71,245.7,33.00809655]
[1737607451058,19.16563739,245.75,245.71,23.776884]
[1737607451258,19.16563739,245.78,245.71,23.776884]
[1737607453581,23.23433739,245.78,245.71,23.776884]
[1737607453780,19.16563739,245.78,245.71,23.776884]
[1737607453958,23.23403739,245.8,245.71,23.776884]
[1737607454585,19.16563739,245.84,245.74,23.776884]
[1737607455174,19.16563739,245.84,245.74,335.776884]
[1737607455384,19.16563739,245.84,245.74,339.846084]
[1737607457668,19.16563739,245.84,245.74,27.846084]
[1737607458285,19.16563739,245.84,245.75,19.16563739]
[1737607458468,20.74443739,245.86,245.78,23.776884]
[1737607459079,24.81183739,245.86,245.78,23.776884]
[1737607459498,20.74443739,245.86,245.78,23.776884]
[1737607460187,19.22863739,245.88,245.8,23.776884]
[1737607460375,0.063,245.88,245.82,23.776884]
[1737607460569,0.063,245.88,245.84,23.776884]
[1737607460889,0.063,245.88,245.82,335.776884]
[1737607460890,0.063,245.88,245.87,19.16563739]
[1737607461667,0.063,245.88,245.87,42.94252139]
[1737607462377,0.063,245.88,245.87,47.00962139]
[1737607462981,0.063,245.88,245.87,53.48222139]
[1737607463364,0.0001,245.88,245.87,136.38222139]
[1737607463667,0.063,245.92,245.91,43.776884]
[1737607463876,0.063,245.92,245.91,62.94252139]
[1737607464095,0.063,245.92,245.91,374.94252139]
[1737607464580,0.063,245.92,245.91,379.00902139]
[1737607464966,0.03,245.95,245.94,20.0]
[1737607465161,0.03,245.95,245.94,62.94252139]
[1737607465367,0.03,245.95,245.94,23.776884]
[1737607467390,0.03,245.95,245.94,42.94252139]
[1737607468091,0.03,245.95,245.94,354.94252139]
[1737607471095,0.03,245.95,245.94,19.16563739]
[1737607471399,0.03,245.95,245.94,42.94252139]
[1737607472097,0.03,245.95,245.94,23.776884]
[1737607474083,0.03,245.95,245.88,19.16563739]
[1737607474266,0.03,245.95,245.88,23.23263739]
[1737607474467,0.03,245.95,245.92,23.839884]
[1737607474884,0.03,245.95,245.92,27.906084]
[1737607476999,0.03,245.95,245.92,339.906084]
[1737607477913,0.0001,245.95,245.94,23.776884]
[1737607478078,0.03,246.01,245.96,20.0]
[1737607478408,0.03,246.01,245.97,23.776884]
[1737607478976,0.03,246.01,245.99,23.776884]
[1737607480206,0.03,246.01,246.0,27.841884]
[1737607481805,0.03,246.01,246.0,47.00752139]
[1737607484124,0.03,246.01,246.0,19.16563739]
[1737607484410,0.03,246.01,245.94,19.16563739]
[1737607484611,0.03,246.01,245.97,23.776884]
[1737607485106,0.03,246.01,245.99,23.776884]
[1737607485696,0.03,246.01,246.0,42.94252139]
[1737607486088,19.16563739,246.1,246.01,23.776884]
[1737607486292,19.16563739,246.12,246.05,23.776884]
[1737607486491,0.063,246.13,246.05,23.776884]
[1737607486802,0.063,246.13,246.07,23.776884]
[1737607487311,0.063,246.13,246.09,23.776884]
[1737607487505,0.063,246.13,246.11,23.776884]
[1737607488714,0.063,246.13,246.12,47.00552139]
[1737607489899,0.063,246.13,246.12,359.00552139]
[1737607490426,0.03,246.26,246.18,7.5]
[1737607490732,19.16563739,246.35,246.26,23.776884]
[1737607491026,19.16563739,246.4,246.32,19.16563739]
[1737607491227,19.16563739,246.4,246.26,6.1493]
[1737607491228,19.16563739,246.36,246.28,19.16563739]
[1737607491419,19.16563739,246.38,246.28,19.16563739]
[1737607491610,19.16563739,246.38,246.3,19.16563739]
[1737607492628,19.16563739,246.38,246.31,23.776884]
[1737607493012,19.16563739,246.34,246.24,19.16563739]
[1737607493203,9.0587,246.38,246.19,16.12150604]
[1737607493204,19.16563739,246.32,246.22,19.16563739]
[1737607493630,19.16563739,246.32,246.22,331.16563739]
[1737607493932,19.16563739,246.32,246.25,23.776884]
[1737607494944,5.6163,246.33,246.25,23.776884]
[1737607495744,19.16563739,246.32,246.25,23.776884]
[1737607496035,1.5567,246.33,246.25,23.776884]
[1737607496815,1.5567,246.33,246.25,27.837684]
[1737607497339,19.16563739,246.34,246.25,23.776884]
[1737607498817,19.16563739,246.34,246.25,27.837684]
[1737607499935,0.03,246.32,246.25,23.776884]
[1737607500139,19.19563739,246.32,246.25,23.776884]
[1737607501730,19.19563739,246.32,246.24,23.776884]
[1737607502029,19.16563739,246.26,246.15,4.0624]
[1737607502235,19.16563739,246.22,246.15,4.0624]
[1737607502428,19.16563739,246.28,246.21,23.776884]
[1737607502627,19.19563739,246.32,246.24,23.776884]
[1737607502824,0.03,246.32,246.26,23.776884]
[1737607503339,19.19563739,246.32,246.23,19.16563739]
[1737607503517,19.19563739,246.32,246.15,14.2188]
[1737607503518,19.16563739,246.3,246.21,19.16563739]
[1737607503851,19.16563739,246.3,246.15,4.0624]
[1737607503852,19.16563739,246.23,246.15,23.22803739]
[1737607504156,19.16563739,246.23,246.16,23.776884]
[1737607504317,19.16563739,246.23,246.15,23.22803739]
[1737607504524,19.16563739,246.25,246.15,23.22803739]
[1737607504728,19.16563739,246.25,246.16,23.776884]
[1737607505051,19.16563739,246.29,246.19,19.16563739]
[1737607505223,19.16563739,246.29,246.2,23.776884]
[1737607505440,19.16563739,246.29,246.21,19.16563739]
[1737607505860,19.16563739,246.31,246.23,4.0612]
[1737607506666,19.16563739,246.31,246.22,27.838184]
[1737607507662,0.03,246.32,246.25,19.16563739]
[1737607507842,0.03,246.32,246.27,23.776884]
[1737607508264,0.03,246.32,246.28,312.0]
[1737607508468,0.03,246.32,246.29,23.776884]
[1737607508765,0.03,246.32,246.29,42.94252139]
[1737607509068,0.03,246.32,246.31,42.94252139]
[1737607509735,0.03,246.32,246.31,23.776884]
[1737607510344,0.03,246.32,246.25,19.16563739]
[1737607510763,0.03,246.32,246.27,19.16563739]
[1737607511866,0.03,246.32,246.27,331.16563739]
[1737607512062,0.03,246.32,246.27,312.0]
[1737607512367,0.03,246.32,246.28,23.776884]
[1737607513064,0.03,246.32,246.28,27.837184]
[1737607513272,0.03,246.32,246.31,23.776884]
[1737607514567,19.16563739,246.43,246.35,23.776884]
[1737607514753,19.16563739,246.45,246.35,42.94252139]
[1737607514948,20.81853739,246.47,246.4,4.0584]
[1737607515149,19.16563739,246.47,246.41,23.776884]
[1737607515361,19.16563739,246.49,246.41,42.94252139]
[1737607515750,19.16563739,246.51,246.41,42.94252139]
[1737607516069,20.81853739,246.53,246.48,312.0]
[1737607516266,19.19563739,246.57,246.49,23.776884]
[1737607516768,19.19563739,246.57,246.48,23.776884]
[1737607517767,19.19563739,246.57,246.49,19.16563739]
[1737607518155,19.19563739,246.57,246.47,19.16563739]
[1737607518475,19.16563739,246.55,246.48,23.776884]
[1737607518773,0.03,246.57,246.41,6.4046]
[1737607518774,19.19563739,246.57,246.5,23.776884]
[1737607518968,0.03,246.57,246.51,19.16563739]
[1737607519352,0.03,246.57,246.54,23.776884]
[1737607519654,0.03,246.57,246.55,312.0]
[1737607519950,0.03,246.57,246.56,23.776884]
[1737607520648,0.03,246.57,246.56,30.239084]
[1737607521255,0.03,246.57,246.56,34.294884]
[1737607521454,19.16563739,246.73,246.6,23.776884]
[1737607521763,19.16563739,246.73,246.65,23.776884]
[1737607522275,19.16563739,246.77,246.68,19.16563739]
[1737607522471,19.16563739,246.77,246.69,23.776884]
[1737607523174,23.21773739,246.79,246.71,335.776884]
[1737607523359,19.16563739,246.79,246.71,312.0]
[1737607523679,19.16563739,246.85,246.76,19.16563739]
[1737607523878,1.6432,246.86,246.78,19.16563739]
[1737607524196,0.03,246.82,246.78,19.16563739]
[1737607524377,0.03,246.82,246.76,19.16563739]
[1737607524762,0.03,246.82,246.77,23.776884]
[1737607524973,0.03,246.82,246.72,10.5153]
[1737607524974,0.03,246.82,246.81,23.776884]
[1737607525379,0.03,246.82,246.8,19.16563739]
[1737607525567,0.03,246.82,246.78,19.16563739]
[1737607525758,0.03,246.82,246.76,19.16563739]
[1737607526687,0.03,246.82,246.78,312.0]
[1737607527072,19.19563739,246.82,246.73,19.16563739]
[1737607527596,0.03,246.82,246.81,19.16563739]
[1737607528369,0.03,246.82,246.81,42.94252139]
[1737607529760,9.1432,247.0,246.85,20.0]
[1737607529761,19.16563739,246.98,246.85,20.0]
[1737607529974,1.6432,247.0,246.92,19.16563739]
[1737607530486,20.0,246.99,246.92,19.16563739]
[1737607530688,19.16563739,246.96,246.86,19.16563739]
[1737607530867,19.16563739,246.98,246.88,19.16563739]
[1737607531270,19.16563739,246.98,246.9,19.16563739]
[1737607531468,19.16563739,247.0,246.93,23.776884]
[1737607531667,19.16563739,247.04,246.94,19.16563739]
[1737607531881,19.16563739,247.04,246.96,19.16563739]
[1737607532085,19.16563739,247.06,246.98,19.16563739]
[1737607532291,1.6432,247.07,246.98,19.16563739]
[1737607532590,1.6432,247.07,247.0,19.16563739]
[1737607533087,19.16563739,247.08,247.0,19.16563739]
[1737607533293,19.16563739,247.08,246.98,19.16563739]
[1737607533465,20.0,246.97,246.91,19.16563739]
[1737607533788,20.0,246.93,246.88,19.16563739]
[1737607533967,19.16563739,246.96,246.88,19.16563739]
[1737607534370,20.0,246.95,246.88,19.16563739]
[1737607534568,19.16563739,247.0,246.9,19.16563739]
[1737607534879,20.0,246.93,246.86,19.16563739]
[1737607535076,20.0,246.93,246.88,19.16563739]
[1737607535392,20.0,246.95,246.88,19.16563739]
[1737607535574,20.0,246.95,246.85,19.16563739]
[1737607535777,19.16563739,246.96,246.87,19.16563739]
[1737607535976,20.0,246.95,246.89,19.16563739]
[1737607536172,19.16563739,247.02,246.91,19.16563739]
[1737607536388,19.16563739,247.05,246.95,19.16563739]
[1737607536569,19.16563739,247.05,246.96,312.0]
[1737607536988,0.03,247.04,246.97,19.16563739]
[1737607537494,19.16563739,247.03,246.95,19.16563739]
[1737607538096,0.03,247.04,246.95,19.16563739]
[1737607539214,0.03,247.04,246.97,19.16563739]
[1737607539572,19.16563739,247.03,246.93,19.16563739]
[1737607539879,0.78913084,247.04,246.89,23.21593739]
[1737607539880,19.16563739,246.99,246.89,23.21593739]
[1737607540196,19.16563739,246.91,246.82,331.22863739]
[1737607540369,19.16563739,246.93,246.84,19.16563739]
[1737607540693,19.16563739,246.95,246.84,19.16563739]
[1737607541284,23.21503739,246.95,246.84,19.16563739]
[1737607543709,19.16563739,246.93,246.85,312.0]
[1737607544001,19.16563739,246.9,246.82,0.063]
[1737607544217,19.16563739,246.86,246.82,0.063]
[1737607544520,19.16563739,246.84,246.82,0.063]
[1737607545011,0.7598453,246.83,246.82,0.063]
[1737607545700,4.8111453,246.83,246.82,0.063]
[1737607545895,4.051,246.85,246.82,0.063]
[1737607546102,4.0508,246.87,246.82,0.063]
[1737607546303,23.21623739,246.88,246.82,0.063]
[1737607546888,23.97593414,246.88,246.82,0.063]
[1737607547104,19.16563739,246.86,246.82,0.063]
[1737607547415,19.16563739,246.84,246.82,0.063]
[1737607547618,0.75986213,246.83,246.82,0.063]
[1737607547916,4.81116213,246.83,246.82,0.063]
[1737607548612,20.0,246.8,246.68,19.16563739]
[1737607548795,19.16563739,246.77,246.68,19.16563739]
[1737607548986,19.92569454,246.77,246.68,19.16563739]
[1737607549187,19.16563739,246.77,246.68,19.16563739]
[1737607549585,19.16563739,246.77,246.64,9.56900459]
[1737607549586,20.0,246.66,246.64,9.56900459]
[1737607549785,6.6301,246.72,246.54,19.16563739]
[1737607549786,23.21993739,246.65,246.54,19.16563739]
[1737607550098,23.21993739,246.65,246.49,6.423]
[1737607550099,19.16563739,246.59,246.49,6.423]
[1737607550309,19.16563739,246.59,246.49,312.0]
[1737607550512,19.92623676,246.59,246.49,312.0]
[1737607551022,19.16563739,246.61,246.52,19.16563739]
[1737607551498,19.16563739,246.59,246.52,19.16563739]
[1737607551701,19.16563739,246.59,246.49,20.0]
[1737607553316,19.16563739,246.59,246.5,19.16563739]
[1737607553519,19.16563739,246.61,246.53,4.0561]
[1737607553723,19.16563739,246.65,246.54,19.16563739]
[1737607553900,19.16563739,246.65,246.56,19.16563739]
[1737607554307,19.16563739,246.67,246.6,312.0]
[1737607554704,19.16563739,246.69,246.6,19.16563739]
[1737607555436,19.16563739,246.69,246.61,4.0549]
[1737607555813,19.16563739,246.71,246.62,39.16563739]
[1737607556304,19.16563739,246.73,246.64,19.16563739]
[1737607557127,19.16563739,246.75,246.66,19.16563739]
[1737607557313,19.16563739,246.73,246.64,19.16563739]
[1737607557619,19.16563739,246.73,246.65,4.0543]
[1737607557829,19.16563739,246.73,246.68,312.0]
[1737607558631,19.16563739,246.7,246.68,312.0]
[1737607558827,19.16563739,246.7,246.6,19.16563739]
[1737607559032,19.16563739,246.68,246.6,23.22063739]
[1737607559202,19.16563739,246.68,246.6,39.16563739]
[1737607559401,19.16563739,246.68,246.6,20.0]
[1737607559605,19.16563739,246.68,246.61,23.776884]
[1737607559817,19.16563739,246.74,246.65,23.776884]
[1737607560731,19.16563739,246.76,246.66,19.16563739]
[1737607561429,19.16563739,246.76,246.68,19.16563739]
[1737607561627,39.16563739,246.78,246.68,23.28233739]
[1737607561826,19.16563739,246.76,246.72,312.0]
[1737607562009,19.16563739,246.74,246.72,312.0]
[1737607562206,19.16563739,246.78,246.72,312.0]
[1737607562703,19.16563739,246.78,246.69,23.776884]
[1737607563329,19.16563739,246.85,246.75,23.776884]
[1737607563506,19.16563739,246.85,246.76,19.16563739]
[1737607563705,19.16563739,246.87,246.8,20.0]
[1737607564028,0.03,246.88,246.82,19.16563739]
[1737607564208,0.03,246.88,246.83,23.776884]
[1737607565029,0.03,246.88,246.84,19.16563739]
[1737607565641,0.03,246.88,246.87,312.0]
[1737607565807,0.03,246.88,246.87,335.776884]
[1737607566311,0.03,246.88,246.87,312.0]
[1737607567232,0.03,246.88,246.87,339.827584]
[1737607567931,0.03,246.88,246.87,312.0]
[1737607570425,0.03,246.88,246.87,335.776884]
[1737607571936,0.03,246.88,246.87,312.0]
[1737607573007,0.03,246.88,246.86,6.1254]
[1737607573819,0.03,246.88,246.86,29.34183739]
[1737607574410,0.03,246.88,246.87,23.776884]
[1737607574618,19.16563739,247.01,246.91,23.776884]
[1737607574818,19.16563739,247.03,246.94,19.16563739]
[1737607575024,0.03,247.04,246.96,19.16563739]
[1737607576157,0.03,247.04,247.01,312.0]
[1737607576628,0.03,247.04,247.0,23.21413739]
[1737607577223,0.03,247.04,246.98,4.0487]
[1737607577548,19.16563739,247.03,246.94,19.16563739]
[1737607578247,0.03,247.04,246.96,19.16563739]
[1737607578634,14.19563739,247.05,246.96,19.16563739]
[1737607578955,19.16563739,247.09,247.0,19.16563739]
[1737607579129,19.16563739,247.11,247.02,19.16563739]
[1737607579753,19.16563739,247.09,247.04,312.0]
[1737607580230,19.16563739,247.09,247.02,19.16563739]
[1737607581136,19.16563739,247.05,247.0,6.1254]
[1737607581351,19.16563739,247.03,246.94,25.76013739]
[1737607581562,19.16563739,246.99,246.91,4.05]
[1737607582243,19.16563739,246.97,246.9,19.16563739]
[1737607582557,4.0477,247.05,246.9,23.21563739]
[1737607582558,19.16563739,246.99,246.9,23.21563739]
[1737607582937,19.16563739,246.97,246.88,29.81053739]
[1737607583134,19.16563739,246.97,246.92,312.0]
[1737607583662,19.16563739,246.97,246.8,5.0]
[1737607583663,19.16563739,246.93,246.82,19.16563739]
[1737607583869,19.16563739,246.87,246.79,23.21763739]
[1737607584040,19.16563739,246.85,246.78,6.5945]
[1737607584243,19.16563739,246.83,246.74,19.16563739]
[1737607584637,19.16563739,246.83,246.74,39.16563739]
[1737607584833,19.16563739,246.83,246.75,23.776884]
[1737607585040,19.16563739,246.85,246.76,19.16563739]
[1737607585761,19.16563739,246.83,246.75,20.0]
[1737607585965,19.16563739,246.81,246.72,23.28173739]
[1737607586159,19.16563739,246.77,246.72,0.063]
[1737607586666,19.16563739,246.79,246.74,312.063]
[1737607588269,7.5,246.91,246.74,312.063]
[1737607588270,19.16563739,246.83,246.74,23.28143739]
[1737607589144,19.16563739,246.87,246.78,19.16563739]
[1737607590168,19.16563739,246.89,246.83,20.0]
[1737607590342,19.16563739,246.91,246.83,20.0]
[1737607590744,19.16563739,246.91,246.82,39.16563739]
[1737607591048,19.16563739,246.93,246.84,19.16563739]
[1737607591362,19.16563739,246.93,246.87,312.0]
[1737607591666,19.16563739,246.93,246.84,19.16563739]
[1737607592177,19.16563739,246.93,246.84,23.21663739]
[1737607592343,19.16563739,246.96,246.86,19.16563739]
[1737607592543,19.16563739,246.96,246.88,19.16563739]
[1737607593649,19.16563739,246.94,246.84,19.16563739]
[1737607593975,19.16563739,246.9,246.83,20.0]
[1737607594158,0.75943491,246.94,246.8,6.5945]
[1737607594159,19.16563739,246.88,246.8,6.5945]
[1737607594663,19.16563739,246.88,246.81,312.0]
[1737607594858,19.16563739,246.86,246.81,312.0]
[1737607595254,19.16563739,246.84,246.81,312.0]
[1737607595674,19.16563739,246.82,246.74,6.1404]
[1737607597051,23.21723739,246.82,246.74,6.1404]
[1737607597255,19.16563739,246.8,246.74,0.063]
[1737607598677,19.16563739,246.8,246.75,312.0]
[1737607598851,19.16563739,246.84,246.76,19.16563739]
[1737607599173,17.9897,246.9,246.8,19.16563739]
[1737607599174,19.16563739,246.89,246.8,19.16563739]
[1737607599550,1.6638,246.9,246.82,19.16563739]
[1737607599873,19.16563739,246.89,246.8,19.16563739]
[1737607600053,19.16563739,246.93,246.84,19.16563739]
[1737607600253,19.16563739,246.93,246.85,23.776884]
[1737607600456,19.16563739,246.95,246.86,19.16563739]
[1737607600776,19.16563739,246.99,246.9,19.16563739]
[1737607601246,19.16563739,247.01,246.92,19.16563739]
[1737607602076,19.16563739,247.01,246.95,312.0]
[1737607602647,19.16563739,247.03,246.94,23.21503739]
[1737607602861,19.16563739,247.01,246.92,19.16563739]
[1737607603971,19.16563739,246.99,246.9,19.16563739]
[1737607604569,19.16563739,247.01,246.92,19.16563739]
[1737607605350,19.16563739,247.01,246.93,23.776884]
[1737607605574,19.16563739,247.03,246.93,23.776884]
[1737607605875,19.16563739,247.01,246.97,312.0]
[1737607606765,19.16563739,246.99,246.97,312.0]
[1737607606978,19.16563739,246.99,246.9,23.21573739]
[1737607607362,19.16563739,246.97,246.9,4.0501]
[1737607607655,19.16563739,246.99,246.9,23.21573739]
[1737607607862,4.0489,246.98,246.9,19.16563739]
[1737607608074,19.16563739,246.93,246.84,19.16563739]
[1737607608273,19.16563739,246.95,246.85,23.776884]
[1737607608574,19.16563739,246.95,246.83,4.0513]
[1737607608575,19.16563739,246.95,246.88,20.0]
[1737607608982,19.16563739,246.97,246.88,19.16563739]
[1737607609153,19.16563739,246.97,246.88,23.21613739]
[1737607609879,19.16563739,246.95,246.86,23.21633739]
[1737607610483,19.16563739,246.93,246.82,29.29443739]
[1737607610682,19.16563739,246.93,246.84,19.16563739]
[1737607610881,19.16563739,246.95,246.9,0.063]
[1737607611867,19.16563739,246.97,246.9,0.063]
[1737607612191,19.16563739,246.99,246.93,20.0]
[1737607612363,19.16563739,247.01,246.93,20.0]
[1737607612888,19.16563739,247.01,246.97,312.0]
[1737607613393,19.16563739,246.99,246.97,312.0]
[1737607614464,19.16563739,246.99,246.9,0.063]
[1737607614663,19.16563739,246.92,246.9,0.063]
[1737607615876,23.21553739,246.92,246.9,0.063]
[1737607616866,19.16563739,246.92,246.9,0.063]
[1737607618761,24.16563739,246.92,246.9,0.063]
[1737607619597,5.0,246.92,246.9,0.063]
[1737607620175,24.16563739,246.92,246.9,0.063]
[1737607620878,5.0,246.92,246.9,0.063]
[1737607621079,24.16563739,246.92,246.9,0.063]
[1737607621372,5.0,246.92,246.9,312.063]
[1737607621694,5.0,246.92,246.9,0.063]
[1737607624397,5.0,246.92,246.9,4.1131]
[1737607624692,5.0,246.92,246.91,312.0]
[1737607625092,5.0,246.92,246.91,335.776884]
[1737607626113,5.0,246.92,246.91,312.0]
[1737607626982,24.16563739,246.92,246.9,0.063]
[1737607627387,5.0,246.92,246.9,0.063]
[1737607627895,24.16563739,246.92,246.9,0.063]
[1737607628804,5.0,246.92,246.9,0.063]
[1737607629902,5.0,246.92,246.91,312.0]
[1737607635590,5.0,246.92,246.9,10.063]
[1737607636405,5.0,246.92,246.9,14.1131]
[1737607636591,5.0,246.92,246.91,19.16563739]
[1737607638024,5.0,246.92,246.91,42.94252139]
[1737607638418,19.16563739,247.0,246.92,14.1745]
[1737607638590,19.19563739,247.04,246.95,39.16563739]
[1737607639514,19.16563739,246.99,246.92,4.0498]
[1737607639717,11.80290807,246.99,246.92,4.0498]
[1737607639919,11.80290807,246.97,246.9,10.063]
[1737607640226,11.80290807,246.97,246.9,25.91600807]
[1737607640516,4.0481,247.03,246.9,25.91600807]
[1737607640517,11.80290807,247.03,246.94,11.80290807]
[1737607640716,0.03,247.04,246.96,11.80290807]
[1737607641416,11.80290807,247.03,246.94,31.80290807]
[1737607641847,11.80290807,247.01,246.9,25.91600807]
[1737607641995,11.80290807,246.95,246.92,312.0]
[1737607642419,11.80290807,246.97,246.92,312.0]
[1737607643205,11.80290807,247.01,246.9,21.86590807]
[1737607643404,11.80290807,246.99,246.9,25.91590807]
[1737607643837,18.88516069,247.03,246.93,18.88516069]
[1737607644038,18.88516069,247.03,246.94,4.0495]
[1737607644919,0.03,247.04,246.95,18.88516069]
[1737607646006,0.03,247.04,246.9,10.063]
[1737607646007,18.88516069,246.99,246.91,4.05]
[1737607646232,18.88516069,246.99,246.93,312.0]
[1737607647805,18.88516069,246.99,246.93,316.0496]
[1737607648114,18.88516069,247.01,246.93,316.0496]
[1737607648323,18.88516069,247.01,246.93,4.0496]
[1737607649017,18.88516069,247.03,246.95,20.0]
[1737607649250,0.03,247.04,246.94,18.88516069]
[1737607649423,0.03,247.04,246.97,20.0]
[1737607649621,0.03,247.04,246.97,38.88516069]
[1737607650038,0.03,247.04,246.99,18.88516069]
[1737607650244,0.03,247.04,246.98,6.3615]
[1737607650436,18.88516069,247.01,246.94,4.0495]
[1737607650624,18.88516069,247.01,246.92,4.0497]
[1737607651033,18.88516069,246.97,246.91,0.063]
[1737607651343,18.88516069,246.93,246.91,0.063]
[1737607651724,18.88516069,247.01,246.91,46.77494469]
[1737607651949,18.88516069,247.01,246.91,56.90004469]
[1737607652351,0.03,247.04,246.96,20.0]
[1737607652555,0.03,247.04,247.0,20.0]
[1737607653034,18.91516069,247.04,246.93,18.88516069]
[1737607653354,18.91516069,247.04,246.97,24.049]
[1737607653527,18.91516069,247.04,246.97,4.049]
[1737607654449,18.88516069,247.02,246.95,4.0492]
[1737607654934,18.88516069,247.02,246.97,312.0]
[1737607655643,18.88516069,247.0,246.97,312.0]
[1737607655843,18.88516069,247.0,246.91,4.1129]
[1737607656143,18.88516069,246.98,246.91,4.1129]
[1737607656350,4.83706972,247.04,246.95,18.88516069]
[1737607656351,18.91516069,247.04,246.95,18.88516069]
[1737607656555,0.03,247.04,246.95,18.88516069]
[1737607657560,18.88516069,247.01,246.91,22.99806069]
[1737607657727,18.88516069,246.99,246.91,4.1129]
[1737607658842,18.88516069,246.99,246.94,312.0]
[1737607659925,18.91516069,247.01,246.94,312.0]
[1737607660159,0.03,247.01,246.93,18.88516069]
[1737607661255,0.03,247.01,246.94,4.0495]
[1737607662454,0.03,247.01,246.91,18.94816069]
[1737607662627,0.03,247.01,246.92,4.0498]
[1737607663056,0.03,247.01,246.96,312.0]
[1737607663647,11.83181932,247.01,246.92,4.0498]
[1737607663853,11.80181932,246.99,246.91,0.063]
[1737607664243,11.80181932,246.97,246.91,0.063]
[1737607665849,11.80181932,246.95,246.91,0.063]
[1737607666056,11.80181932,246.93,246.91,0.063]
[1737607666643,0.75953021,246.92,246.9,0.063]
[1737607666842,11.80181932,246.91,246.9,0.063]
[1737607668064,20.85181932,246.91,246.9,0.063]
[1737607668227,21.61157051,246.91,246.9,0.063]
[1737607669460,21.61157051,246.91,246.76,4.0524]
[1737607669660,18.90969675,246.83,246.77,312.0]
[1737607670753,18.90969675,246.83,246.76,4.0524]
[1737607671058,18.90969675,246.79,246.74,0.063]
[1737607671244,18.90969675,246.77,246.74,0.063]
[1737607672761,18.90969675,246.75,246.74,0.063]
[1737607673558,0.76005159,246.78,246.74,0.063]
[1737607673859,18.90969675,246.83,246.76,312.0]
[1737607674166,18.90969675,246.83,246.76,330.90969675]
[1737607674341,18.90969675,246.83,246.76,18.90969675]
[1737607674748,1.573,246.84,246.76,18.90969675]
[1737607674935,18.90969675,246.87,246.78,18.90969675]
[1737607675270,18.90969675,246.89,246.8,18.90969675]
[1737607675637,23.71979978,246.89,246.8,18.90969675]
[1737607675839,18.90969675,246.89,246.8,18.90969675]